bitfinex/quotes_ETHUSD_20250129
["timestamp","ask_amount","ask_price","bid_price","bid_amount"]
[1738137871987,3.16148,3163.1,3162.9,0.55]
[1738137872899,3.16155,3163.0,3162.9,0.55]
[1738137873250,3.16145,3163.1,3162.9,0.55]
[1738137874451,6.323,3163.1,3162.9,0.55]
[1738137874652,3.16155,3163.0,3162.9,0.55]
[1738137876150,7.1226,3163.2,3162.9,0.55]
[1738137876347,3.96118,3163.2,3162.6,3.714]
[1738137876547,3.96118,3163.2,3162.7,0.03161466]
[1738137876988,3.96118,3163.2,3162.6,4.741815]
[1738137877192,3.96118,3163.2,3162.6,4.77342978]
[1738137877405,3.16616,3163.4,3163.3,0.55]
[1738137877406,0.005,3163.4,3163.3,0.55]
[1738137877695,0.005,3163.4,3163.3,4.01071027]
[1738137877868,0.005,3163.4,3163.3,0.84946027]
[1738137878057,0.005,3163.4,3163.3,4.01071027]
[1738137879152,0.005,3163.4,3163.3,4.04231657]
[1738137879899,0.005,3163.4,3163.3,7.04231657]
[1738137880190,0.005,3163.4,3163.3,7.01071027]
[1738137882188,0.005,3163.4,3163.3,7.76501027]
[1738137884305,0.005,3163.4,3163.3,8.00501027]
[1738137884599,0.005,3163.4,3163.3,7.76501027]
[1738137884775,0.005,3163.4,3163.3,8.00601027]
[1738137886202,0.005,3163.4,3163.2,3.163]
[1738137886411,0.827,3163.4,3163.2,3.163]
[1738137886707,3.98815,3163.4,3162.7,3.19461317]
[1738137886907,0.827,3163.4,3162.8,0.55]
[1738137887068,0.005,3163.4,3162.9,0.03161244]
[1738137887410,0.005,3163.4,3163.1,3.71145]
[1738137887705,0.005,3163.4,3163.3,0.55]
[1738137888663,0.005,3163.4,3163.2,3.163]
[1738137888869,3.16619,3163.4,3163.2,3.163]
[1738137889306,3.16619,3163.4,3163.3,0.55]
[1738137889507,0.005,3163.4,3163.3,0.55]
[1738137892547,3.16615,3163.4,3163.3,0.55]
[1738137893571,3.798872,3163.4,3163.3,0.55]
[1738137894186,3.16615,3163.4,3163.3,0.55]
[1738137894592,3.93765,3163.4,3163.3,0.55]
[1738137894788,0.7765,3163.4,3162.8,0.241]
[1738137895114,3.16145,3163.2,3162.8,0.241]
[1738137895314,3.16145,3163.2,3162.9,0.55]
[1738137895820,0.709923,3163.2,3162.3,3.97364]
[1738137895984,3.16178,3162.8,3162.3,0.84301734]
[1738137896183,3.16178,3162.8,3162.5,0.55]
[1738137896184,3.16192,3162.7,3162.5,0.55]
[1738137898016,3.16195,3162.6,3162.5,0.55]
[1738137899523,3.16192,3162.7,3162.5,0.55]
[1738137899820,0.7539,3162.8,3162.5,0.55]
[1738137900096,0.7805,3163.1,3162.5,3.74360887]
[1738137900250,0.7805,3163.1,3162.5,3.71199]
[1738137900404,3.94202,3163.1,3162.5,3.71199]
[1738137900601,0.7805,3163.1,3162.7,0.55]
[1738137900805,3.16127,3163.3,3162.8,0.03161549]
[1738137901005,3.16619,3163.4,3162.7,3.7118]
[1738137901214,3.16136,3163.2,3162.7,3.7118]
[1738137901548,3.16136,3163.2,3162.9,0.55]
[1738137901730,3.16619,3163.4,3162.9,0.55]
[1738137902043,3.16125,3163.3,3162.8,0.55]
[1738137902239,3.16125,3163.3,3162.8,3.714]
[1738137902481,3.16145,3163.1,3162.8,3.714]
[1738137902939,6.32739,3163.4,3162.8,3.714]
[1738137903140,3.16127,3163.3,3162.8,0.55]
[1738137903442,3.16129,3163.3,3163.0,0.55]
[1738137903736,3.16143,3163.2,3162.9,0.55]
[1738137904153,3.16145,3163.1,3162.9,0.55]
[1738137904311,3.16143,3163.2,3162.9,0.55]
[1738137904507,3.95305,3162.9,3162.2,3.94202]
[1738137904706,3.16213,3162.5,3161.8,0.7797]
[1738137904929,3.95361,3162.3,3161.9,3.164]
[1738137905115,3.16213,3162.5,3162.0,3.0]
[1738137905331,0.7913,3162.8,3162.2,3.1623]
[1738137905532,0.7913,3162.8,3162.3,0.58161844]
[1738137905714,0.7913,3162.8,3162.3,3.74385844]
[1738137906115,3.16169,3162.9,3162.4,3.923]
[1738137906807,3.16169,3162.9,3162.5,0.58161744]
[1738137907145,3.16188,3162.7,3162.5,0.55]
[1738137907923,3.16169,3162.9,3162.5,0.55]
[1738137908128,3.16158,3163.0,3162.5,0.55]
[1738137908463,0.7781,3163.2,3162.5,0.55]
[1738137908607,3.93952,3163.2,3162.6,0.58161449]
[1738137908808,3.1613,3163.3,3162.8,0.55]
[1738137909028,0.005,3163.4,3162.8,0.58161357]
[1738137909266,0.005,3163.4,3163.0,3.71153]
[1738137909418,0.005,3163.4,3163.0,3.7431405]
[1738137909621,0.005,3163.4,3163.0,0.5816105]
[1738137910550,0.005,3163.4,3163.0,1.27223655]
[1738137911452,0.005,3163.4,3163.0,4.43377655]
[1738137911623,0.005,3163.4,3163.0,1.27223655]
[1738137911819,0.005,3163.4,3163.0,4.43377655]
[1738137913067,0.005,3163.4,3163.0,1.24062605]
[1738137913264,3.16623,3163.4,3163.0,0.55]
[1738137914038,0.005,3163.4,3163.0,0.55]
[1738137914336,3.16131,3163.3,3163.0,0.55]
[1738137915775,0.005,3163.4,3163.0,0.55]
[1738137916081,0.005,3163.4,3163.0,0.58161199]
[1738137916887,0.005,3163.4,3163.0,1.27224119]
[1738137917198,3.16617,3163.4,3163.0,1.2406292]
[1738137917497,3.16617,3163.4,3163.0,0.55]
[1738137917988,3.16132,3163.3,3163.0,0.55]
[1738137918488,0.005,3163.4,3163.0,0.55]
[1738137919663,3.16616,3163.4,3163.0,0.58161203]
[1738137920148,0.005,3163.4,3163.0,3.74315203]
[1738137920343,0.005,3163.4,3163.3,0.55]
[1738137920665,0.005,3163.4,3163.3,3.713]
[1738137922096,0.005,3163.4,3163.3,3.74460826]
[1738137922893,0.72297393,3165.4,3163.3,9.18921092]
[1738137923202,0.72297393,3165.4,3164.8,0.8282]
[1738137923444,0.72297393,3165.4,3165.0,0.55]
[1738137923942,0.72297393,3165.4,3164.8,0.85979642]
[1738137923943,3.15946,3165.1,3164.8,0.03159642]
[1738137924238,0.7713,3165.3,3165.0,3.161]
[1738137924438,3.15943,3165.2,3164.5,3.95253]
[1738137924593,3.15943,3165.2,3164.6,3.162]
[1738137924793,3.15943,3165.2,3164.4,3.0]
[1738137924794,0.95345027,3165.2,3164.4,3.0]
[1738137924995,3.15946,3165.1,3164.5,3.16005]
[1738137925303,3.15946,3165.1,3164.3,0.261]
[1738137925304,3.9306,3165.3,3164.7,0.55]
[1738137925633,0.7713,3165.3,3164.8,3.15975]
[1738137925799,0.7713,3165.3,3164.9,0.55]
[1738137926199,0.1621047,3165.5,3164.9,0.55]
[1738137926467,0.1621047,3165.5,3165.0,6.9134]
[1738137926744,0.1621047,3165.5,3164.9,3.687175]
[1738137926922,3.15928,3165.3,3164.6,3.91234]
[1738137927119,0.1621047,3165.5,3164.3,0.261]
[1738137927120,0.7656,3165.4,3164.8,0.55]
[1738137927319,3.15958,3165.0,3164.8,0.55]
[1738137927519,3.15941,3165.2,3164.6,0.55]
[1738137927722,0.7672,3165.0,3164.0,3.95556]
[1738137927922,0.32118027,3164.9,3164.0,3.95556]
[1738137928238,3.16016,3164.4,3163.8,3.16072]
[1738137928416,3.15978,3164.8,3163.8,3.16072]
[1738137928609,0.7672,3164.7,3163.6,0.7623]
[1738137928819,3.16061,3164.0,3163.2,4.23094]
[1738137929024,3.92781,3164.0,3163.3,6.747294]
[1738137929223,3.92781,3164.0,3163.4,3.55]
[1738137929424,3.92781,3164.0,3163.3,3.586094]
[1738137929647,3.16078,3163.8,3163.3,0.423094]
[1738137929846,3.92781,3164.0,3163.2,0.7806]
[1738137930035,3.16077,3163.8,3163.2,0.7806]
[1738137930357,0.7655,3164.3,3163.2,6.97520942]
[1738137930525,0.7804,3164.6,3164.1,0.55]
[1738137930724,0.7804,3164.6,3164.0,0.55]
[1738137930912,3.94042,3164.6,3164.0,0.55]
[1738137931119,3.94042,3164.6,3163.9,3.71063]
[1738137931615,3.94042,3164.6,3164.0,0.03160084]
[1738137932339,0.7804,3164.6,3164.1,0.12300902]
[1738137932677,3.15987,3164.7,3164.2,0.55]
[1738137933161,0.64164728,3165.2,3164.4,3.71015]
[1738137933162,3.15948,3165.1,3164.4,3.71015]
[1738137933663,3.15948,3165.1,3164.6,0.55]
[1738137933990,3.15948,3165.1,3164.5,0.55]
[1738137934113,3.15948,3165.1,3164.8,0.55]
[1738137934313,3.97844,3165.2,3164.8,0.55]
[1738137934552,3.97844,3165.2,3164.9,0.11831196]
[1738137934734,3.15932,3165.3,3164.7,0.55]
[1738137934911,3.15932,3165.3,3165.0,0.11831196]
[1738137935110,3.15932,3165.3,3164.7,0.58159377]
[1738137935111,3.15932,3165.3,3164.7,0.55]
[1738137935336,3.15932,3165.3,3164.8,0.11831196]
[1738137935556,3.15945,3165.2,3164.5,3.16005]
[1738137935881,3.15945,3165.2,3165.0,0.55]
[1738137936168,3.15945,3165.1,3165.0,0.55]
[1738137936514,3.15945,3165.1,3164.7,0.55]
[1738137937626,3.15937,3165.2,3164.7,0.55]
[1738137938022,3.15945,3165.1,3164.7,0.55]
[1738137939259,3.15925,3165.3,3164.7,0.55]
[1738137939463,3.15974,3164.9,3164.3,0.8279]
[1738137939827,3.15982,3164.8,3164.3,0.8279]
[1738137940436,3.15949,3165.1,3164.4,0.55]
[1738137940651,6.31943,3164.9,3164.4,0.55]
[1738137941243,3.15979,3164.8,3164.4,0.55]
[1738137941728,3.15986,3164.7,3164.4,0.55]
[1738137941928,3.15986,3164.7,3164.1,3.712]
[1738137942129,3.15986,3164.7,3164.1,4.481113]
[1738137942481,0.8277,3165.2,3164.2,0.1140532]
[1738137942644,3.15988,3164.7,3164.2,0.1140532]
[1738137942845,3.15988,3164.7,3164.3,0.55]
[1738137943049,6.31983,3164.7,3164.3,0.55]
[1738137943252,3.15998,3164.6,3164.2,0.55]
[1738137943565,3.15998,3164.6,3164.5,0.55]
[1738137943771,3.16018,3164.4,3164.3,0.11411813]
[1738137943928,3.16018,3164.4,3164.3,0.55]
[1738137944274,3.16018,3164.4,3164.3,0.66412403]
[1738137947466,3.15998,3164.6,3164.4,0.55]
[1738137947868,3.15998,3164.6,3164.5,0.11440144]
[1738137950770,3.15978,3164.8,3164.5,0.66440144]
[1738137951068,3.15978,3164.8,3164.6,0.55]
[1738137951469,3.15978,3164.8,3164.5,0.55]
[1738137951670,3.15978,3164.8,3164.7,0.66440144]
[1738137951870,3.15978,3164.8,3164.7,0.55]
[1738137952075,3.15978,3164.8,3164.7,0.66440144]
[1738137952440,3.791717,3164.8,3164.7,0.11440144]
[1738137952781,3.16037,3164.2,3163.8,0.7824]
[1738137952981,3.16075,3163.9,3163.4,0.7824]
[1738137953185,3.16075,3163.9,3163.4,7.10654]
[1738137953341,3.16082,3163.8,3163.4,3.9454]
[1738137953541,3.16082,3163.8,3163.4,3.7824]
[1738137953736,3.16082,3163.8,3163.5,0.55]
[1738137955175,3.16059,3164.0,3163.5,1.02436842]
[1738137956807,3.9644,3164.2,3163.5,4.18535842]
[1738137956808,3.1604,3164.2,3163.5,4.18535842]
[1738137957107,3.16046,3164.1,3163.5,4.18535842]
[1738137957309,3.16046,3164.1,3163.5,7.34835842]
[1738137957474,3.16046,3164.1,3163.7,0.55]
[1738137957865,3.16046,3164.1,3163.8,0.10325663]
[1738137958071,3.16046,3164.1,3163.9,0.55]
[1738137958403,3.16055,3164.0,3163.6,0.55]
[1738137958706,3.16055,3164.0,3163.4,3.7824]
[1738137958707,3.14986231,3163.8,3163.4,3.7824]
[1738137958892,3.14986231,3163.8,3163.5,0.55]
[1738137960113,6.3208,3164.2,3163.5,0.58160822]
[1738137960332,3.16046,3164.1,3163.7,0.55]
[1738137960467,3.16038,3164.2,3163.7,0.55]
[1738137960468,3.16057,3164.0,3163.7,0.55]
[1738137960670,3.16067,3163.9,3163.7,0.55]
[1738137961089,3.16075,3163.8,3163.7,0.55]
[1738137961269,3.16101,3163.6,3163.3,3.41128421]
[1738137961469,6.32204,3163.6,3163.3,3.41128421]
[1738137961807,3.16115,3163.4,3163.3,3.41128421]
[1738137962397,3.97275,3163.4,3163.3,3.41128421]
[1738137964984,3.97275,3163.4,3163.3,3.51245794]
[1738137966930,4.99264218,3163.4,3163.3,3.51245794]
[1738137969024,5.15767601,3163.4,3163.3,3.51245794]
[1738137969438,5.15767601,3163.4,3163.3,3.41128421]
[1738137975132,8.15767601,3163.4,3163.3,3.41128421]
[1738137976336,8.15767601,3163.4,3163.3,4.21e-06]
[1738137976757,8.15767601,3163.4,3161.9,3.0]
[1738137976758,3.7656,3163.3,3161.9,3.0]
[1738137977053,3.16233,3162.3,3162.0,0.55]
[1738137977258,3.16245,3162.1,3162.0,0.65192852]
[1738137977754,3.16233,3162.3,3162.0,0.65192852]
[1738137978237,3.16242,3162.2,3162.0,0.10192852]
[1738137980363,3.16233,3162.3,3161.8,0.7674]
[1738137980657,3.16247,3162.1,3161.8,0.7674]
[1738137981028,0.7656,3162.5,3161.8,0.7674]
[1738137981228,3.16231,3162.3,3161.8,0.7674]
[1738137981546,3.16215,3162.4,3161.8,0.7674]
[1738137982159,3.16246,3162.1,3161.8,0.7674]
[1738137983041,3.16246,3162.1,3161.5,3.16304]
[1738137983042,2.44460266,3162.0,3161.5,0.823]
[1738137983255,3.16287,3161.7,3161.5,0.823]
[1738137983464,3.16312,3161.5,3161.1,3.988]
[1738137983871,3.16351,3161.1,3160.7,0.823]
[1738137984083,3.16356,3161.0,3160.8,3.165]
[1738137984283,3.16365,3160.9,3160.8,3.165]
[1738137984433,3.16375,3160.8,3160.7,0.823]
[1738137984629,5.60835266,3160.8,3160.3,3.9662]
[1738137984864,3.16407,3160.5,3160.3,0.8002]
[1738137985046,3.16415,3160.4,3160.1,0.8002]
[1738137985445,3.16415,3160.4,3160.2,0.55]
[1738137985788,3.16444,3160.2,3160.0,3.166]
[1738137986129,3.1646,3160.0,3159.7,0.7931]
[1738137986334,3.16466,3159.9,3159.4,0.82]
[1738137986680,3.16466,3159.9,3159.5,3.167]
[1738137986866,3.16476,3159.8,3159.5,3.167]
[1738137987063,3.16487,3159.7,3159.4,0.82]
[1738137987413,3.16516,3159.4,3159.1,0.7534]
[1738137987591,3.16516,3159.4,3158.9,3.167]
[1738137987791,3.16497,3159.6,3158.9,3.167]
[1738137988126,3.16506,3159.5,3158.9,3.16563]
[1738137988261,3.16506,3159.5,3158.9,6.33263]
[1738137988582,3.16506,3159.5,3159.0,0.55]
[1738137988790,3.16497,3159.6,3158.9,6.33263]
[1738137988989,3.16497,3159.6,3158.9,3.16563]
[1738137989199,3.16457,3160.0,3159.2,0.55]
[1738137989371,3.16473,3159.9,3159.4,0.55]
[1738137989779,3.16476,3159.8,3159.4,0.55]
[1738137989981,3.16476,3159.8,3159.2,3.717]
[1738137990189,3.16497,3159.6,3159.0,3.0]
[1738137990426,3.16497,3159.6,3159.1,3.167]
[1738137990594,3.16506,3159.5,3159.2,0.55]
[1738137990808,0.316506,3159.5,3159.1,3.167]
[1738137990962,3.16495,3159.6,3158.8,0.7827]
[1738137991158,6.25456281,3160.2,3159.2,0.55]
[1738137991363,3.16453,3160.1,3159.6,0.7934]
[1738137991604,3.16453,3160.1,3159.7,0.55]
[1738137991801,0.63281,3160.4,3159.7,0.55]
[1738137991802,3.16427,3160.3,3159.7,0.55]
[1738137992007,3.16418,3160.4,3159.7,6.8818]
[1738137992176,3.16414,3160.5,3159.9,0.55]
[1738137992389,3.16414,3160.5,3159.9,3.71463]
[1738137993396,3.16394,3160.7,3160.2,0.7896]
[1738137993700,3.16406,3160.5,3160.2,0.7896]
[1738137994516,3.16416,3160.4,3160.2,0.7896]
[1738137994889,3.16395,3160.6,3160.1,0.55]
[1738137995098,0.16509137,3160.7,3160.1,3.71444]
[1738137995412,3.16386,3160.7,3160.2,0.688044]
[1738137995575,3.16386,3160.7,3160.1,3.71444]
[1738137996316,3.16372,3160.9,3160.2,3.16435]
[1738137996476,3.16339,3161.2,3160.5,0.55]
[1738137996680,3.16339,3161.2,3160.6,3.16393]
[1738137997223,3.16269,3161.9,3161.1,3.16341]
[1738137997384,3.16334,3161.3,3160.9,0.8076]
[1738137997584,3.16334,3161.3,3160.4,3.16408]
[1738137997585,3.16354,3161.1,3160.5,3.92403]
[1738137997779,3.16354,3161.1,3160.6,3.716]
[1738137998117,3.16334,3161.3,3160.6,3.716]
[1738137998319,3.16334,3161.3,3160.6,3.71393]
[1738137998677,3.16309,3161.5,3160.6,1.313801]
[1738137999007,3.16295,3161.6,3161.1,0.55]
[1738137999203,3.96038352,3161.8,3161.1,3.71342]
[1738137999517,3.79528725,3161.8,3161.0,3.16347]
[1738137999706,0.63252725,3161.8,3161.3,0.55]
[1738138000302,3.16267,3161.9,3161.3,3.71323]
[1738138000490,3.16267,3161.9,3161.3,0.55]
[1738138000692,3.16311,3161.5,3160.9,3.7788]
[1738138000896,3.16316,3161.4,3161.1,0.55]
[1738138001310,3.16326,3161.3,3160.9,0.7788]
[1738138002430,3.16326,3161.3,3161.0,0.09770183]
[1738138002830,3.16293,3161.7,3161.1,0.55]
[1738138003342,3.16293,3161.7,3161.0,0.55]
[1738138003635,3.16313,3161.5,3160.9,0.7788]
[1738138003790,0.16507546,3161.9,3161.7,3.16279]
[1738138004146,3.16218,3162.4,3161.9,0.55]
[1738138004284,3.794721,3162.3,3161.9,0.55]
[1738138004688,3.794721,3162.3,3162.0,0.09724795]
[1738138004689,3.16245,3162.1,3162.0,0.09724795]
[1738138005117,3.16245,3162.1,3161.5,0.7677]
[1738138005325,3.1627,3161.9,3161.6,0.55]
[1738138005532,3.16277,3161.8,3161.6,0.09724795]
[1738138005695,0.632547,3161.8,3161.6,0.09724795]
[1738138005887,3.1627,3161.9,3161.6,0.09724795]
[1738138006396,3.16255,3162.0,3161.6,0.09724795]
[1738138006820,3.16274,3161.9,3161.6,0.09724795]
[1738138007533,3.16255,3162.0,3161.6,0.09724795]
[1738138008296,3.16268,3161.9,3161.6,0.09724795]
[1738138008554,0.632431,3162.3,3161.7,3.715]
[1738138008705,3.16235,3162.2,3161.7,3.715]
[1738138008893,3.16235,3162.2,3161.9,0.55]
[1738138009093,3.5583327,3162.2,3161.9,0.55]
[1738138009304,3.5583327,3162.2,3161.8,0.55]
[1738138009546,3.5583327,3162.2,3162.0,0.09554281]
[1738138009693,3.16235,3162.2,3161.8,0.55]
[1738138010032,3.16235,3162.2,3161.5,0.7677]
[1738138010240,3.16263,3162.0,3161.9,0.09554281]
[1738138010422,3.16273,3161.9,3161.6,0.55]
[1738138010610,3.16263,3162.0,3161.9,0.09554281]
[1738138010813,0.316263,3162.0,3161.6,0.55]
[1738138011114,3.16257,3162.0,3161.6,0.55]
[1738138011317,3.16239,3162.2,3161.6,3.71294]
[1738138011498,3.16258,3162.0,3161.7,0.09554281]
[1738138011693,3.16266,3161.9,3161.7,0.09554281]
[1738138012729,3.16275,3161.8,3161.7,0.09554281]
[1738138012928,3.16275,3161.8,3161.5,0.7677]
[1738138013165,3.479025,3161.8,3161.6,0.09554281]
[1738138013367,3.16285,3161.7,3161.2,0.799]
[1738138013577,3.16319,3161.4,3161.3,0.0954898]
[1738138013787,0.316275,3161.8,3160.9,0.7552]
[1738138014073,3.16342,3161.2,3161.0,0.0954898]
[1738138015556,3.16345,3161.1,3161.0,0.0954898]
[1738138015764,3.16342,3161.2,3160.6,0.8023]
[1738138015958,3.16359,3161.0,3160.7,0.09558404]
[1738138016473,3.16342,3161.2,3160.7,0.09558404]
[1738138017049,3.16342,3161.2,3160.8,0.55]
[1738138017257,3.16316,3161.4,3160.8,0.55]
[1738138017496,3.16316,3161.4,3161.1,0.7682]
[1738138018186,3.16316,3161.4,3161.2,0.09591987]
[1738138018559,3.16325,3161.3,3161.2,0.09591987]
[1738138020406,3.1631,3161.5,3161.2,0.09591987]
[1738138020813,6.32605,3161.6,3161.2,0.09591987]
[1738138020971,3.163,3161.6,3161.2,0.09591987]
[1738138021405,3.16317,3161.4,3161.2,0.09591987]
[1738138023671,3.16325,3161.3,3161.2,0.09591987]
[1738138024221,3.16361,3161.0,3160.7,0.7908]
[1738138025726,3.16371,3160.9,3160.7,0.7908]
[1738138026972,3.16371,3160.9,3160.5,0.55]
[1738138027518,3.16371,3160.9,3160.7,0.55]
[1738138028131,3.16382,3160.8,3160.6,0.29340909]
[1738138028495,3.16385,3160.7,3160.6,0.29340909]
[1738138028706,3.16385,3160.7,3160.0,3.91564]
[1738138028707,3.16385,3160.7,3160.5,0.29340909]
[1738138028913,3.16395,3160.6,3160.5,0.29340909]
[1738138029906,3.16395,3160.6,3160.4,0.55]
[1738138030714,3.16415,3160.4,3160.3,0.29340909]
[1738138031027,3.480345,3160.6,3160.3,0.29340909]
[1738138031227,3.480345,3160.6,3160.1,0.29340909]
[1738138031395,3.16423,3160.4,3160.1,0.29340909]
[1738138031587,3.16435,3160.2,3160.1,0.29340909]
[1738138032326,3.797208,3160.2,3159.9,0.55]
[1738138032551,3.797208,3160.2,3159.8,3.29340909]
[1738138032552,3.797208,3160.2,3160.1,0.09319393]
[1738138032747,3.16445,3160.1,3160.0,0.09011132]
[1738138032958,3.16465,3159.9,3159.8,0.29340909]
[1738138033466,3.87962,3159.9,3159.8,0.29340909]
[1738138033636,3.16481,3159.8,3159.4,0.7781]
[1738138033834,3.16481,3159.8,3159.5,0.23461542]
[1738138034039,3.16487,3159.7,3159.5,0.23461542]
[1738138034217,3.16495,3159.6,3159.5,0.23461542]
[1738138034517,4.80599227,3159.6,3159.5,0.23461542]
[1738138035605,1.64104227,3159.6,3158.9,0.55]
[1738138035867,0.7636,3159.6,3158.9,3.71564]
[1738138036514,0.7636,3159.6,3158.9,0.55]
[1738138037219,3.16543,3159.2,3158.9,0.55]
[1738138037418,3.16543,3159.2,3158.6,3.16592]
[1738138037619,3.16525,3159.4,3158.7,2.99460266]
[1738138037865,3.16525,3159.4,3158.9,0.55]
[1738138038571,0.7636,3159.6,3158.9,0.55]
[1738138038728,0.8223,3159.9,3159.2,3.16526]
[1738138039067,0.8223,3159.9,3159.3,3.71523]
[1738138039666,0.8223,3159.9,3159.4,0.776]
[1738138040121,0.8223,3159.9,3159.5,0.55]
[1738138040324,1.45166329,3160.1,3159.5,0.55]
[1738138040860,0.64886329,3160.1,3159.5,0.55]
[1738138041249,0.64886329,3160.1,3159.7,3.16483]
[1738138041450,0.16503551,3160.5,3160.1,0.55]
[1738138041653,0.16503551,3160.5,3160.0,3.16454]
[1738138041654,0.16503551,3160.5,3160.4,3.16415]
[1738138041965,1.62184051,3161.0,3160.3,0.55]
[1738138042462,0.9743389,3161.0,3160.3,0.55]
[1738138043068,0.9743389,3161.0,3160.5,0.55]
[1738138043678,0.1649389,3161.0,3160.9,0.55]
[1738138043858,0.7633,3162.1,3161.0,3.16352]
[1738138044060,0.16491967,3161.6,3161.0,3.16352]
[1738138044277,0.7633,3161.5,3160.9,3.71365]
[1738138044673,0.92821745,3161.5,3160.9,3.71365]
[1738138045160,0.6226635,3161.4,3160.9,3.71365]
[1738138046263,3.7858935,3161.4,3160.9,0.55]
[1738138046466,0.4714111,3161.3,3160.9,0.55]
[1738138047269,0.4714111,3161.3,3161.0,0.09095456]
[1738138050210,0.92821745,3161.5,3161.0,0.09095456]
[1738138050589,4.09127745,3161.5,3161.0,0.09095456]
[1738138050772,4.73442045,3161.5,3161.0,0.09095456]
[1738138051998,3.16316,3161.4,3161.0,0.09095456]
[1738138052511,4.73442045,3161.5,3161.0,0.09095456]
[1738138052811,0.47344205,3161.4,3161.0,0.09095456]
[1738138053786,3.63660205,3161.4,3161.0,0.09095456]
[1738138054926,0.47344205,3161.4,3161.0,0.09095456]
[1738138055314,0.92821745,3161.5,3161.1,0.55]
[1738138055515,0.92821745,3161.5,3161.1,0.64051396]
[1738138055701,0.16491745,3161.5,3161.1,0.64051396]
[1738138056391,0.16491745,3161.5,3161.1,3.80396396]
[1738138057592,3.97091,3162.1,3161.3,0.55]
[1738138057788,3.97091,3162.1,3161.6,0.55]
[1738138058002,3.16251,3162.1,3161.6,0.55]
[1738138058228,3.16256,3162.0,3161.6,0.55]
[1738138058427,3.16256,3162.0,3161.7,0.08996764]
[1738138058821,3.16268,3161.9,3161.7,0.08996764]
[1738138059516,3.16253,3162.1,3161.7,0.08996764]
[1738138059721,3.54152184,3162.1,3161.7,0.08996764]
[1738138060309,3.16265,3162.0,3161.7,0.08996764]
[1738138062608,3.16235,3162.2,3161.9,0.55]
[1738138062798,3.78710026,3162.3,3161.9,0.55]
[1738138063000,3.94572,3162.2,3162.0,0.0892178]
[1738138063297,3.1627,3161.9,3161.5,0.7765]
[1738138063499,3.16292,3161.7,3161.2,0.7765]
[1738138063703,3.16318,3161.4,3161.2,0.7765]
[1738138063903,6.32642,3161.4,3160.8,0.7765]
[1738138064099,3.16327,3161.3,3160.9,0.55]
[1738138064337,3.16313,3161.5,3160.9,0.55]
[1738138064999,3.16316,3161.4,3160.9,0.55]
[1738138065954,3.163,3161.6,3160.9,3.71365]
[1738138066301,6.32605,3161.6,3160.9,3.71365]
[1738138066496,3.16315,3161.4,3160.9,3.71365]
[1738138066948,3.16282,3161.8,3161.3,0.55]
[1738138067415,3.16286,3161.7,3161.3,0.55]
[1738138067908,3.16286,3161.7,3161.0,3.16345]
[1738138067909,3.16299,3161.6,3161.1,0.55]
[1738138068146,3.16307,3161.5,3160.9,3.16362]
[1738138068502,3.16299,3161.6,3160.8,3.94022]
[1738138068702,3.16316,3161.4,3160.8,3.94022]
[1738138069525,3.16299,3161.6,3160.9,0.55]
[1738138069863,3.16299,3161.6,3160.8,3.94016]
[1738138069864,3.16299,3161.6,3161.1,0.55]
[1738138070042,3.795565,3161.6,3161.1,0.55]
[1738138071672,3.795565,3161.6,3161.1,0.84330824]
[1738138072678,6.958605,3161.6,3161.1,0.55]
[1738138072972,3.16352,3161.1,3160.5,0.7532]
[1738138073129,3.16356,3161.0,3160.5,0.7532]
[1738138073326,3.16356,3161.0,3160.6,0.55]
[1738138073540,3.93136,3161.0,3160.3,0.7532]
[1738138073743,3.93136,3161.0,3160.4,0.55]
[1738138073941,3.93136,3161.0,3160.4,3.16413]
[1738138074146,4.6724684,3161.0,3160.4,3.16413]
[1738138074354,3.1637,3160.9,3160.5,0.55]
[1738138074747,3.1637,3160.9,3160.5,0.84384119]
[1738138075160,0.316344,3161.1,3160.5,4.00782119]
[1738138075366,0.63101508,3161.2,3160.7,0.55]
[1738138076837,0.63101508,3161.2,3160.5,0.29384119]
[1738138077242,0.63101508,3161.2,3160.6,0.29384119]
[1738138077457,0.63101508,3161.2,3160.6,0.38321167]
[1738138079083,0.63101508,3161.2,3160.6,0.08937048]
[1738138079290,0.15889828,3161.1,3160.6,0.08937048]
[1738138080354,0.95796776,3161.3,3160.6,0.08937048]
[1738138080750,1.58092936,3161.3,3160.6,0.08937048]
[1738138080947,0.78782936,3161.3,3160.7,0.7986]
[1738138081195,0.78782936,3161.3,3160.7,0.88821718]
[1738138082247,0.16486776,3161.3,3160.7,0.88821718]
[1738138083686,3.32816776,3161.3,3160.7,0.88821718]
[1738138083884,3.66098454,3161.3,3160.7,0.88821718]
[1738138084056,3.16347,3161.1,3160.7,0.88821718]
[1738138084258,3.66098454,3161.3,3160.8,0.55]
[1738138084671,3.66098454,3161.3,3161.0,0.55]
[1738138085208,3.66098454,3161.3,3161.1,0.08984625]
[1738138086408,0.63976997,3161.4,3161.1,0.08984625]
[1738138086557,3.16328,3161.3,3161.1,0.08984625]
[1738138087701,3.32821626,3161.3,3161.1,0.08984625]
[1738138087915,3.92825,3161.2,3161.1,0.08984625]
[1738138088079,3.16425,3160.3,3160.0,0.7728]
[1738138088402,0.7649,3160.4,3159.6,7.10469]
[1738138088562,3.16422,3160.4,3159.9,3.16465]